[Event "Titled Tuesday Blitz February 15 Early 2022"]
[White "Osmonbekov, Talaibek"]
[Black "Eynullayev, Altay"]
[WhiteFideId "2017253"]
[BlackFideId "13413562"]
[WhiteElo "2135"]
[BlackElo "2079"]
[Result "0-1"]
[Round "08"]
[TimeControl "180+1"]
[Date "2022.02.15"]
[WhiteClock "0:00:01"]
[BlackClock "0:00:54"]

1. d4 {[%clk 0:03:00]}  Nf6 {[%clk 0:02:59]} 2. Nc3 {[%clk 0:03:01]}  d5 {[%clk 0:02:59]} 3. Bf4 {[%clk 0:03:01]}  e6 {[%clk 0:02:58]} 4. e3 {[%clk 0:03:01]}  Be7 {[%clk 0:02:58]} 5. Nf3 {[%clk 0:03:01]}  O-O {[%clk 0:02:57]} 6. Bd3 {[%clk 0:03:01]}  c5 {[%clk 0:02:56]} 7. dxc5 {[%clk 0:03:01]}  Nbd7 {[%clk 0:02:55]} 8. O-O {[%clk 0:03:02]}  Nxc5 {[%clk 0:02:55]} 9. Re1 {[%clk 0:02:46]}  b6 {[%clk 0:02:47]} 10. Ne5 {[%clk 0:02:40]}  Bb7 {[%clk 0:02:46]} 11. a3 {[%clk 0:02:41]}  Rc8 {[%clk 0:02:42]} 12. Nb5 {[%clk 0:02:35]}  a6 {[%clk 0:02:39]} 13. Nd4 {[%clk 0:02:35]}  Bd6 {[%clk 0:02:34]} 14. Bf1 {[%clk 0:02:17]}  Qc7 {[%clk 0:02:31]} 15. Nd3 {[%clk 0:02:11]}  e5 {[%clk 0:02:25]} 16. Bg5 {[%clk 0:01:43]}  exd4 {[%clk 0:02:25]} 17. Bxf6 {[%clk 0:01:43]}  gxf6 {[%clk 0:02:26]} 18. Qh5 {[%clk 0:01:03]}  Ne4 {[%clk 0:02:13]} 19. f3 {[%clk 0:00:51]}  Nd2 {[%clk 0:01:49]} 20. Qg4+ {[%clk 0:00:37]}  Kh8 {[%clk 0:01:48]} 21. Qh4 {[%clk 0:00:38]}  Be7 {[%clk 0:01:38]} 22. exd4 {[%clk 0:00:35]}  Nxf1 {[%clk 0:01:38]} 23. Kxf1 {[%clk 0:00:20]}  Rce8 {[%clk 0:01:36]} 24. Re2 {[%clk 0:00:16]}  Bd8 {[%clk 0:01:32]} 25. Rae1 {[%clk 0:00:10]}  Rxe2 {[%clk 0:01:31]} 26. Rxe2 {[%clk 0:00:11]}  Bc8 {[%clk 0:01:30]} 27. Nf4 {[%clk 0:00:10]}  Qd7 {[%clk 0:01:09]} 28. g4 {[%clk 0:00:05]}  Rg8 {[%clk 0:01:01]} 29. Nh5 {[%clk 0:00:04]}  Qd6 {[%clk 0:00:58]} 30. Ng3 {[%clk 0:00:04]}  f5 {[%clk 0:00:57]} 31. Qh3 {[%clk 0:00:02]}  fxg4 {[%clk 0:00:56]} 32. fxg4 {[%clk 0:00:01]}  Bxg4 {[%clk 0:00:54]} 0-1


[Site "https://www.chess.com"]

[Event "Titled Tuesday Blitz February 15 Early 2022"]
[White "Ozdemir, Serhan Berat"]
[Black "Osiecki, Stanislaw"]
[WhiteFideId "6374611"]
[BlackFideId "1102990"]
[WhiteElo "1920"]
[BlackElo "2127"]
[Result "1-0"]
[Round "08"]
[TimeControl "180+1"]
[Date "2022.02.15"]
[WhiteClock "0:00:53"]
[BlackClock "0:00:08"]

1. e4 {[%clk 0:03:00]}  e6 {[%clk 0:02:57]} 2. d4 {[%clk 0:03:00]}  d5 {[%clk 0:02:56]} 3. Nd2 {[%clk 0:03:01]}  c5 {[%clk 0:02:55]} 4. Ngf3 {[%clk 0:03:00]}  cxd4 {[%clk 0:02:55]} 5. Nxd4 {[%clk 0:03:01]}  Nc6 {[%clk 0:02:54]} 6. Bb5 {[%clk 0:03:01]}  Bd7 {[%clk 0:02:54]} 7. Nxc6 {[%clk 0:03:01]}  bxc6 {[%clk 0:02:54]} 8. Bd3 {[%clk 0:03:01]}  Bd6 {[%clk 0:02:51]} 9. Qe2 {[%clk 0:02:58]}  Ne7 {[%clk 0:02:47]} 10. e5 {[%clk 0:02:49]}  Bc5 {[%clk 0:02:44]} 11. Qg4 {[%clk 0:02:41]}  O-O {[%clk 0:02:39]} 12. Nf3 {[%clk 0:02:40]}  f5 {[%clk 0:02:21]} 13. exf6 {[%clk 0:02:39]}  Rxf6 {[%clk 0:02:19]} 14. Bg5 {[%clk 0:02:31]}  Rxf3 {[%clk 0:01:50]} 15. gxf3 {[%clk 0:02:14]}  Qb6 {[%clk 0:01:37]} 16. Qh4 {[%clk 0:02:08]}  Nf5 {[%clk 0:01:33]} 17. Bxf5 {[%clk 0:02:00]}  exf5 {[%clk 0:01:33]} 18. O-O {[%clk 0:01:41]}  Qxb2 {[%clk 0:01:24]} 19. Rab1 {[%clk 0:01:36]}  Qd4 {[%clk 0:01:01]} 20. Qxd4 {[%clk 0:01:23]}  Bxd4 {[%clk 0:01:01]} 21. Rb7 {[%clk 0:01:23]}  Be8 {[%clk 0:00:40]} 22. Re1 {[%clk 0:01:20]}  Bh5 {[%clk 0:00:21]} 23. Kg2 {[%clk 0:01:20]}  h6 {[%clk 0:00:21]} 24. Be3 {[%clk 0:01:20]}  Bc3 {[%clk 0:00:17]} 25. Reb1 {[%clk 0:01:01]}  a5 {[%clk 0:00:16]} 26. Rc7 {[%clk 0:00:58]}  Ra6 {[%clk 0:00:15]} 27. Rbb7 {[%clk 0:00:57]}  Be8 {[%clk 0:00:12]} 28. Rc8 {[%clk 0:00:53]}  Kf8 {[%clk 0:00:08]} 29. Bc5+ {[%clk 0:00:53]} 1-0


[Site "https://www.chess.com"]

[Event "Titled Tuesday Blitz February 15 Early 2022"]
[White "Ozkan, Taha"]
[Black "Molina, Roberto Junio Brito"]
[WhiteFideId "34577173"]
[BlackFideId "2109450"]
[WhiteElo "2571"]
[BlackElo "2789"]
[Result "0-1"]
[Round "08"]
[TimeControl "180+1"]
[Date "2022.02.15"]
[WhiteClock "0:00:38"]
[BlackClock "0:00:20"]

1. d4 {[%clk 0:03:00]}  d5 {[%clk 0:02:59]} 2. c4 {[%clk 0:03:00]}  c6 {[%clk 0:02:59]} 3. Nf3 {[%clk 0:03:00]}  Nf6 {[%clk 0:02:58]} 4. Nc3 {[%clk 0:03:00]}  dxc4 {[%clk 0:02:57]} 5. a4 {[%clk 0:03:00]}  Bf5 {[%clk 0:02:56]} 6. e3 {[%clk 0:03:00]}  e6 {[%clk 0:02:55]} 7. Bxc4 {[%clk 0:03:01]}  Bb4 {[%clk 0:02:55]} 8. O-O {[%clk 0:03:01]}  O-O {[%clk 0:02:54]} 9. Qe2 {[%clk 0:03:02]}  Nbd7 {[%clk 0:02:54]} 10. e4 {[%clk 0:03:02]}  Bg6 {[%clk 0:02:54]} 11. Bd3 {[%clk 0:03:03]}  Bh5 {[%clk 0:02:51]} 12. e5 {[%clk 0:03:03]}  Nd5 {[%clk 0:02:51]} 13. Nxd5 {[%clk 0:03:03]}  cxd5 {[%clk 0:02:50]} 14. Qe3 {[%clk 0:03:04]}  Bg6 {[%clk 0:02:46]} 15. Ng5 {[%clk 0:03:03]}  Re8 {[%clk 0:02:38]} 16. Qh3 {[%clk 0:03:00]}  Nf8 {[%clk 0:02:36]} 17. f4 {[%clk 0:02:56]}  Bxd3 {[%clk 0:02:31]} 18. Qxd3 {[%clk 0:02:57]}  f5 {[%clk 0:02:28]} 19. exf6 {[%clk 0:02:46]}  Qxf6 {[%clk 0:02:26]} 20. Bd2 {[%clk 0:02:47]}  Bxd2 {[%clk 0:02:23]} 21. Qxd2 {[%clk 0:02:48]}  Rac8 {[%clk 0:02:22]} 22. Nf3 {[%clk 0:02:42]}  Qf5 {[%clk 0:02:19]} 23. Rac1 {[%clk 0:02:40]}  Ng6 {[%clk 0:02:16]} 24. g3 {[%clk 0:02:34]}  Ne7 {[%clk 0:02:07]} 25. Rfe1 {[%clk 0:02:27]}  Nc6 {[%clk 0:02:05]} 26. Rc3 {[%clk 0:02:20]}  Re7 {[%clk 0:02:00]} 27. b4 {[%clk 0:02:15]}  Rce8 {[%clk 0:01:56]} 28. Rce3 {[%clk 0:02:12]}  b6 {[%clk 0:01:50]} 29. Rc1 {[%clk 0:01:53]}  Nd8 {[%clk 0:01:48]} 30. b5 {[%clk 0:01:52]}  Nf7 {[%clk 0:01:47]} 31. Rc6 {[%clk 0:01:46]}  g5 {[%clk 0:01:39]} 32. fxg5 {[%clk 0:01:12]}  Nxg5 {[%clk 0:01:29]} 33. Nxg5 {[%clk 0:01:13]}  Qxg5 {[%clk 0:01:30]} 34. Qe2 {[%clk 0:01:03]}  Qf6 {[%clk 0:01:18]} 35. Re5 {[%clk 0:00:56]}  Kh8 {[%clk 0:01:15]} 36. Qf2 {[%clk 0:00:51]}  Qg7 {[%clk 0:01:12]} 37. Qe3 {[%clk 0:00:41]}  Qg4 {[%clk 0:00:51]} 38. Rc1 {[%clk 0:00:37]}  Rf8 {[%clk 0:00:43]} 39. Rg5 {[%clk 0:00:27]}  Qe4 {[%clk 0:00:29]} 40. Re1 {[%clk 0:00:23]}  Qxe3+ {[%clk 0:00:27]} 41. Rxe3 {[%clk 0:00:24]}  Rfe8 {[%clk 0:00:26]} 42. Kg2 {[%clk 0:00:21]}  h6 {[%clk 0:00:26]} 43. Rg4 {[%clk 0:00:20]}  Kh7 {[%clk 0:00:26]} 44. Rf4 {[%clk 0:00:20]}  Kg6 {[%clk 0:00:26]} 45. Rf2 {[%clk 0:00:20]}  e5 {[%clk 0:00:26]} 46. dxe5 {[%clk 0:00:20]}  Rxe5 {[%clk 0:00:27]} 47. Rd3 {[%clk 0:00:20]}  R8e6 {[%clk 0:00:24]} 48. Kh3 {[%clk 0:00:20]}  Rf6 {[%clk 0:00:23]} 49. Rfd2 {[%clk 0:00:20]}  Rd6 {[%clk 0:00:22]} 50. Rd4 {[%clk 0:00:21]}  Kf5 {[%clk 0:00:22]} 51. Rf4+ {[%clk 0:00:19]}  Ke6 {[%clk 0:00:22]} 52. Rfd4 {[%clk 0:00:19]}  Re3 {[%clk 0:00:20]} 53. Kg4 {[%clk 0:00:18]}  Ke5 {[%clk 0:00:20]} 54. Kh5 {[%clk 0:00:17]}  Re4 {[%clk 0:00:16]} 55. R4d3 {[%clk 0:00:11]}  Rxa4 {[%clk 0:00:15]} 56. Re2+ {[%clk 0:00:10]}  Re4 {[%clk 0:00:15]} 57. Ra2 {[%clk 0:00:08]}  d4 {[%clk 0:00:14]} 58. Rxa7 {[%clk 0:00:08]}  Kd5 {[%clk 0:00:13]} 59. Rc7 {[%clk 0:00:08]}  Re3 {[%clk 0:00:12]} 60. Rd2 {[%clk 0:00:08]}  d3 {[%clk 0:00:12]} 61. Rc1 {[%clk 0:00:08]}  Kd4 {[%clk 0:00:12]} 62. Rcd1 {[%clk 0:00:09]}  Kc3 {[%clk 0:00:12]} 63. Ra2 {[%clk 0:00:08]}  Kb3 {[%clk 0:00:06]} 64. Rad2 {[%clk 0:00:08]}  Kc4 {[%clk 0:00:06]} 65. Ra2 {[%clk 0:00:07]}  Kxb5 {[%clk 0:00:06]} 66. Rb2+ {[%clk 0:00:08]}  Kc4 {[%clk 0:00:07]} 67. g4 {[%clk 0:00:08]}  Re2 {[%clk 0:00:07]} 68. h4 {[%clk 0:00:09]}  Rxb2 {[%clk 0:00:07]} 69. Rc1+ {[%clk 0:00:10]}  Rc2 {[%clk 0:00:07]} 70. Rd1 {[%clk 0:00:11]}  d2 {[%clk 0:00:07]} 71. Rf1 {[%clk 0:00:11]}  Rc1 {[%clk 0:00:08]} 72. Rf4+ {[%clk 0:00:12]}  Rd4 {[%clk 0:00:08]} 73. Rf6 {[%clk 0:00:11]}  d1=Q {[%clk 0:00:09]} 74. Rc6+ {[%clk 0:00:12]}  Kd5 {[%clk 0:00:10]} 75. Rxb6 {[%clk 0:00:13]}  Rc6 {[%clk 0:00:10]} 76. Rb5+ {[%clk 0:00:12]}  Rc5 {[%clk 0:00:10]} 77. Rxc5+ {[%clk 0:00:12]}  Kxc5 {[%clk 0:00:10]} 78. Kxh6 {[%clk 0:00:13]}  Rxg4 {[%clk 0:00:11]} 79. h5 {[%clk 0:00:14]}  Rh4 {[%clk 0:00:11]} 80. Kh7 {[%clk 0:00:15]}  Rxh5+ {[%clk 0:00:12]} 81. Kg6 {[%clk 0:00:16]}  Re5 {[%clk 0:00:12]} 82. Kf6 {[%clk 0:00:16]}  Re2 {[%clk 0:00:13]} 83. Kf7 {[%clk 0:00:17]}  Qf1+ {[%clk 0:00:14]} 84. Kg7 {[%clk 0:00:17]}  Rg2+ {[%clk 0:00:15]} 85. Kh7 {[%clk 0:00:18]}  Qg1 {[%clk 0:00:16]} 86. Kh6 {[%clk 0:00:18]}  Kd4 {[%clk 0:00:17]} 87. Kh5 {[%clk 0:00:18]}  Kd3 {[%clk 0:00:18]} 88. Kh6 {[%clk 0:00:19]}  Kc3 {[%clk 0:00:18]} 89. Kh7 {[%clk 0:00:20]}  Kc2 {[%clk 0:00:19]} 90. Kh8 {[%clk 0:00:20]}  Kb2 {[%clk 0:00:20]} 91. Kh7 {[%clk 0:00:21]}  Kb3 {[%clk 0:00:21]} 92. Kh6 {[%clk 0:00:22]}  Ka2 {[%clk 0:00:22]} 93. Kh7 {[%clk 0:00:23]}  Ka3 {[%clk 0:00:23]} 94. Kh8 {[%clk 0:00:24]}  Ka4 {[%clk 0:00:24]} 95. Kh7 {[%clk 0:00:24]}  Ka5 {[%clk 0:00:25]} 96. Kh6 {[%clk 0:00:24]}  Ka6 {[%clk 0:00:26]} 97. Kh5 {[%clk 0:00:25]}  Ka7 {[%clk 0:00:27]} 98. Kh4 {[%clk 0:00:26]}  Ka8 {[%clk 0:00:27]} 99. Kh5 {[%clk 0:00:27]}  Kb7 {[%clk 0:00:28]} 100. Kh6 {[%clk 0:00:28]}  Kb8 {[%clk 0:00:29]} 101. Kh7 {[%clk 0:00:28]}  Kc7 {[%clk 0:00:30]} 102. Kh8 {[%clk 0:00:29]}  Kc8 {[%clk 0:00:31]} 103. Kh7 {[%clk 0:00:30]}  Kd7 {[%clk 0:00:32]} 104. Kh8 {[%clk 0:00:31]}  Kd8 {[%clk 0:00:33]} 105. Kh7 {[%clk 0:00:32]}  Ke7 {[%clk 0:00:33]} 106. Kh8 {[%clk 0:00:33]}  Rg3 {[%clk 0:00:33]} 107. Kh7 {[%clk 0:00:33]}  Qg2 {[%clk 0:00:33]} 108. Kh8 {[%clk 0:00:34]}  Ke6 {[%clk 0:00:34]} 109. Kh7 {[%clk 0:00:35]}  Kf5 {[%clk 0:00:34]} 110. Kh8 {[%clk 0:00:36]}  Kf4 {[%clk 0:00:35]} 111. Kh7 {[%clk 0:00:37]}  Rg6 {[%clk 0:00:34]} 112. Kh8 {[%clk 0:00:38]}  Qh2# {[%clk 0:00:20]} 0-1


[Site "https://www.chess.com"]

[Event "Titled Tuesday Blitz February 15 Early 2022"]
[White "Pichot, Alan"]
[Black "Viani Antonio Dcunha"]
[WhiteFideId "110973"]
[BlackFideId "5027330"]
[WhiteElo "2543"]
[BlackElo "2366"]
[Result "1-0"]
[Round "08"]
[TimeControl "180+1"]
[Date "2022.02.15"]
[WhiteClock "0:00:40"]
[BlackClock "0:00:02"]

1. d4 {[%clk 0:03:00]}  Nf6 {[%clk 0:02:59]} 2. Nf3 {[%clk 0:03:00]}  g6 {[%clk 0:03:00]} 3. c3 {[%clk 0:03:00]}  Bg7 {[%clk 0:03:00]} 4. Bf4 {[%clk 0:03:00]}  O-O {[%clk 0:03:00]} 5. h3 {[%clk 0:03:01]}  d6 {[%clk 0:03:00]} 6. e3 {[%clk 0:03:01]}  b6 {[%clk 0:03:00]} 7. Bh2 {[%clk 0:03:02]}  Bb7 {[%clk 0:03:01]} 8. a4 {[%clk 0:03:03]}  a5 {[%clk 0:03:00]} 9. Be2 {[%clk 0:03:02]}  Nbd7 {[%clk 0:03:00]} 10. O-O {[%clk 0:03:02]}  Ne4 {[%clk 0:03:00]} 11. Na3 {[%clk 0:03:02]}  e5 {[%clk 0:02:59]} 12. Nb5 {[%clk 0:03:01]}  c6 {[%clk 0:02:53]} 13. Na3 {[%clk 0:02:57]}  Qe7 {[%clk 0:02:51]} 14. Nc4 {[%clk 0:02:46]}  exd4 {[%clk 0:02:37]} 15. cxd4 {[%clk 0:02:40]}  d5 {[%clk 0:02:33]} 16. Nce5 {[%clk 0:02:37]}  Nxe5 {[%clk 0:02:21]} 17. Nxe5 {[%clk 0:02:36]}  f6 {[%clk 0:02:15]} 18. Nd3 {[%clk 0:02:35]}  Ba6 {[%clk 0:02:08]} 19. Rc1 {[%clk 0:02:33]}  Rac8 {[%clk 0:02:00]} 20. Rc2 {[%clk 0:02:32]}  Rfd8 {[%clk 0:01:55]} 21. Qc1 {[%clk 0:02:32]}  Bc4 {[%clk 0:01:31]} 22. b3 {[%clk 0:02:12]}  Bxb3 {[%clk 0:01:27]} 23. Rxc6 {[%clk 0:02:12]}  Qe8 {[%clk 0:01:16]} 24. Rc7 {[%clk 0:02:01]}  Bxa4 {[%clk 0:01:10]} 25. Nf4 {[%clk 0:01:53]}  Bc6 {[%clk 0:01:02]} 26. Rxc8 {[%clk 0:01:47]}  Rxc8 {[%clk 0:01:03]} 27. Ba6 {[%clk 0:01:47]}  Ra8 {[%clk 0:00:58]} 28. Bd3 {[%clk 0:01:44]}  a4 {[%clk 0:00:50]} 29. Qb2 {[%clk 0:01:37]}  a3 {[%clk 0:00:39]} 30. Qxb6 {[%clk 0:01:36]}  a2 {[%clk 0:00:38]} 31. Ra1 {[%clk 0:01:36]}  Ra3 {[%clk 0:00:27]} 32. Bc2 {[%clk 0:01:24]}  Qa8 {[%clk 0:00:23]} 33. Bb3 {[%clk 0:01:22]}  Kh8 {[%clk 0:00:15]} 34. Rxa2 {[%clk 0:01:06]}  Rxa2 {[%clk 0:00:14]} 35. Bxa2 {[%clk 0:01:07]}  Nc3 {[%clk 0:00:11]} 36. Ne6 {[%clk 0:00:55]}  Nxa2 {[%clk 0:00:10]} 37. Bb8 {[%clk 0:00:56]}  Be8 {[%clk 0:00:05]} 38. Qc7 {[%clk 0:00:51]}  Bh6 {[%clk 0:00:03]} 39. Qd8 {[%clk 0:00:47]}  Qc6 {[%clk 0:00:03]} 40. Qxf6+ {[%clk 0:00:40]}  Kg8 {[%clk 0:00:04]} 41. Bf4 {[%clk 0:00:41]}  Bf7 {[%clk 0:00:02]} 42. Bxh6 {[%clk 0:00:40]} 1-0


[Site "https://www.chess.com"]

[Event "Titled Tuesday Blitz February 15 Early 2022"]
[White "Pinheiro, Iung Alicio de O."]
[Black "Stepanencu, Nicodim-Cosmin"]
[WhiteFideId "2104350"]
[BlackFideId "1256220"]
[WhiteElo "2639"]
[BlackElo "1809"]
[Result "1-0"]
[Round "08"]
[TimeControl "180+1"]
[Date "2022.02.15"]
[WhiteClock "0:00:07"]
[BlackClock "0:00:01"]

1. e4 {[%clk 0:02:59]}  c5 {[%clk 0:02:58]} 2. Nf3 {[%clk 0:02:59]}  Nc6 {[%clk 0:02:53]} 3. c3 {[%clk 0:02:58]}  Nf6 {[%clk 0:02:52]} 4. e5 {[%clk 0:02:58]}  Nd5 {[%clk 0:02:53]} 5. d4 {[%clk 0:02:58]}  cxd4 {[%clk 0:02:53]} 6. cxd4 {[%clk 0:02:57]}  d6 {[%clk 0:02:54]} 7. Bc4 {[%clk 0:02:56]}  dxe5 {[%clk 0:02:39]} 8. dxe5 {[%clk 0:02:53]}  Nb6 {[%clk 0:02:39]} 9. Qxd8+ {[%clk 0:02:38]}  Nxd8 {[%clk 0:02:40]} 10. Bb5+ {[%clk 0:02:19]}  Bd7 {[%clk 0:02:40]} 11. Nc3 {[%clk 0:02:18]}  a6 {[%clk 0:02:40]} 12. Be2 {[%clk 0:02:12]}  g6 {[%clk 0:02:36]} 13. Be3 {[%clk 0:02:12]}  Na4 {[%clk 0:02:30]} 14. Nd5 {[%clk 0:02:10]}  Ne6 {[%clk 0:02:28]} 15. b3 {[%clk 0:02:08]}  Bc6 {[%clk 0:02:24]} 16. Bc4 {[%clk 0:01:35]}  b5 {[%clk 0:02:09]} 17. Nb4 {[%clk 0:01:11]}  Bxf3 {[%clk 0:02:03]} 18. Bxe6 {[%clk 0:01:03]}  Bxg2 {[%clk 0:01:48]} 19. Rg1 {[%clk 0:00:58]}  fxe6 {[%clk 0:01:39]} 20. Rxg2 {[%clk 0:00:56]}  Nc3 {[%clk 0:01:39]} 21. Rc1 {[%clk 0:00:40]}  a5 {[%clk 0:01:30]} 22. Rxc3 {[%clk 0:00:35]}  axb4 {[%clk 0:01:29]} 23. Rc5 {[%clk 0:00:36]}  Rxa2 {[%clk 0:01:20]} 24. Rxb5 {[%clk 0:00:36]}  Bg7 {[%clk 0:01:18]} 25. Rg4 {[%clk 0:00:36]}  Kd7 {[%clk 0:01:04]} 26. Rgxb4 {[%clk 0:00:33]}  Rc8 {[%clk 0:01:03]} 27. Kf1 {[%clk 0:00:33]}  Rc3 {[%clk 0:00:57]} 28. Rb7+ {[%clk 0:00:32]}  Ke8 {[%clk 0:00:26]} 29. Rb8+ {[%clk 0:00:31]}  Kd7 {[%clk 0:00:27]} 30. R4b7+ {[%clk 0:00:29]}  Kc6 {[%clk 0:00:27]} 31. Rxe7 {[%clk 0:00:28]}  Bxe5 {[%clk 0:00:20]} 32. Rb6+ {[%clk 0:00:15]}  Kd5 {[%clk 0:00:18]} 33. Rbxe6 {[%clk 0:00:15]}  Bxh2 {[%clk 0:00:09]} 34. b4 {[%clk 0:00:13]}  Bd6 {[%clk 0:00:08]} 35. Re8 {[%clk 0:00:13]}  Bxb4 {[%clk 0:00:08]} 36. Re5+ {[%clk 0:00:13]}  Kc4 {[%clk 0:00:07]} 37. Re4+ {[%clk 0:00:11]}  Kb3 {[%clk 0:00:04]} 38. Rb8 {[%clk 0:00:11]}  Rc4 {[%clk 0:00:04]} 39. Re7 {[%clk 0:00:10]}  Kc3 {[%clk 0:00:03]} 40. Rxh7 {[%clk 0:00:09]}  Bd6 {[%clk 0:00:02]} 41. Rd8 {[%clk 0:00:08]}  Be5 {[%clk 0:00:02]} 42. Kg2 {[%clk 0:00:08]}  Rg4+ {[%clk 0:00:01]} 43. Kf3 {[%clk 0:00:07]}  Rc4 {[%clk 0:00:01]} 44. Rh6 {[%clk 0:00:07]}  Ra5 {[%clk 0:00:01]} 45. Rxg6 {[%clk 0:00:06]}  Rb5 {[%clk 0:00:01]} 46. Rdg8 {[%clk 0:00:07]} 1-0


[Site "https://www.chess.com"]

[Event "Titled Tuesday Blitz February 15 Early 2022"]
[White "Poormosavi, Seyed Kian"]
[Black "Csonka, Balazs"]
[WhiteFideId "12585807"]
[BlackFideId "742910"]
[WhiteElo "2116"]
[BlackElo "2404"]
[Result "1-0"]
[Round "08"]
[TimeControl "180+1"]
[Date "2022.02.15"]
[WhiteClock "0:01:17"]
[BlackClock "0:00:01"]

1. Nf3 {[%clk 0:03:00]}  Nf6 {[%clk 0:02:57]} 2. g3 {[%clk 0:03:01]}  b6 {[%clk 0:02:57]} 3. Bg2 {[%clk 0:03:01]}  Bb7 {[%clk 0:02:58]} 4. O-O {[%clk 0:03:00]}  g6 {[%clk 0:02:58]} 5. d3 {[%clk 0:03:01]}  d5 {[%clk 0:02:57]} 6. Nbd2 {[%clk 0:02:56]}  Bg7 {[%clk 0:02:57]} 7. Qe1 {[%clk 0:02:57]}  O-O {[%clk 0:02:49]} 8. e3 {[%clk 0:02:46]}  c5 {[%clk 0:02:47]} 9. Qe2 {[%clk 0:02:46]}  Nc6 {[%clk 0:02:46]} 10. c3 {[%clk 0:02:47]}  e5 {[%clk 0:02:27]} 11. e4 {[%clk 0:02:46]}  Re8 {[%clk 0:02:21]} 12. Rd1 {[%clk 0:02:44]}  Qd7 {[%clk 0:02:13]} 13. Nf1 {[%clk 0:02:41]}  h6 {[%clk 0:02:12]} 14. Ne3 {[%clk 0:02:39]}  Rad8 {[%clk 0:01:59]} 15. exd5 {[%clk 0:02:38]}  Nxd5 {[%clk 0:01:58]} 16. Nxd5 {[%clk 0:02:39]}  Qxd5 {[%clk 0:01:59]} 17. a4 {[%clk 0:02:39]}  Na5 {[%clk 0:01:39]} 18. Be3 {[%clk 0:02:34]}  Qd7 {[%clk 0:01:31]} 19. b4 {[%clk 0:02:30]}  cxb4 {[%clk 0:01:30]} 20. cxb4 {[%clk 0:02:31]}  Nb3 {[%clk 0:01:30]} 21. Ra3 {[%clk 0:02:27]}  Nd4 {[%clk 0:01:20]} 22. Bxd4 {[%clk 0:02:24]}  exd4 {[%clk 0:01:21]} 23. Qb2 {[%clk 0:02:19]}  Qg4 {[%clk 0:00:51]} 24. h3 {[%clk 0:02:07]}  Qh5 {[%clk 0:00:46]} 25. g4 {[%clk 0:02:06]}  Qd5 {[%clk 0:00:46]} 26. a5 {[%clk 0:01:57]}  Qd6 {[%clk 0:00:38]} 27. axb6 {[%clk 0:01:54]}  axb6 {[%clk 0:00:29]} 28. Ra7 {[%clk 0:01:53]}  Bd5 {[%clk 0:00:23]} 29. Ne1 {[%clk 0:01:47]}  Bxg2 {[%clk 0:00:20]} 30. Nxg2 {[%clk 0:01:48]}  Qd5 {[%clk 0:00:16]} 31. Qa2 {[%clk 0:01:45]}  Qf3 {[%clk 0:00:13]} 32. Re1 {[%clk 0:01:40]}  Rxe1+ {[%clk 0:00:03]} 33. Nxe1 {[%clk 0:01:39]}  Qf6 {[%clk 0:00:04]} 34. b5 {[%clk 0:01:29]}  Re8 {[%clk 0:00:04]} 35. Ng2 {[%clk 0:01:29]}  Re6 {[%clk 0:00:03]} 36. Qd5 {[%clk 0:01:26]}  Kh7 {[%clk 0:00:01]} 37. h4 {[%clk 0:01:25]}  Re7 {[%clk 0:00:01]} 38. Rxe7 {[%clk 0:01:23]}  Qxe7 {[%clk 0:00:02]} 39. h5 {[%clk 0:01:23]}  gxh5 {[%clk 0:00:02]} 40. gxh5 {[%clk 0:01:23]}  Be5 {[%clk 0:00:02]} 41. Qe4+ {[%clk 0:01:20]}  Kg7 {[%clk 0:00:02]} 42. Nh4 {[%clk 0:01:18]}  Qg5+ {[%clk 0:00:01]} 43. Kf1 {[%clk 0:01:18]}  Qc1+ {[%clk 0:00:02]} 44. Ke2 {[%clk 0:01:18]}  Qc2+ {[%clk 0:00:01]} 45. Kf3 {[%clk 0:01:18]}  Qc7 {[%clk 0:00:01]} 46. Nf5+ {[%clk 0:01:17]}  Kf6 {[%clk 0:00:02]} 47. Nxh6 {[%clk 0:01:17]}  Qc2 {[%clk 0:00:01]} 48. Ng4+ {[%clk 0:01:17]}  Kg7 {[%clk 0:00:01]} 49. Qxe5+ {[%clk 0:01:17]} 1-0


[Site "https://www.chess.com"]

[Event "Titled Tuesday Blitz February 15 Early 2022"]
[White "Rakhimgaliyev, Yerlan"]
[Black "Alavi, Sayed Javad"]
[WhiteFideId "13705148"]
[BlackFideId "12500607"]
[WhiteElo "2261"]
[BlackElo "2475"]
[Result "0-1"]
[Round "08"]
[TimeControl "180+1"]
[Date "2022.02.15"]
[WhiteClock "0:00:12"]
[BlackClock "0:00:32"]

1. e4 {[%clk 0:02:53]}  c5 {[%clk 0:02:58]} 2. Nf3 {[%clk 0:02:53]}  e6 {[%clk 0:02:58]} 3. c3 {[%clk 0:02:54]}  Nf6 {[%clk 0:02:56]} 4. e5 {[%clk 0:02:54]}  Nd5 {[%clk 0:02:57]} 5. d4 {[%clk 0:02:55]}  cxd4 {[%clk 0:02:58]} 6. cxd4 {[%clk 0:02:56]}  d6 {[%clk 0:02:58]} 7. Bd3 {[%clk 0:02:56]}  dxe5 {[%clk 0:02:57]} 8. dxe5 {[%clk 0:02:56]}  Nb4 {[%clk 0:02:58]} 9. Bb5+ {[%clk 0:02:52]}  Bd7 {[%clk 0:02:53]} 10. Bc4 {[%clk 0:02:01]}  Qc7 {[%clk 0:02:49]} 11. Bb3 {[%clk 0:02:00]}  Qxc1 {[%clk 0:02:38]} 12. Qxc1 {[%clk 0:01:55]}  Nd3+ {[%clk 0:02:39]} 13. Ke2 {[%clk 0:01:53]}  Nxc1+ {[%clk 0:02:40]} 14. Rxc1 {[%clk 0:01:53]}  Na6 {[%clk 0:02:28]} 15. Nc3 {[%clk 0:01:38]}  Nc5 {[%clk 0:02:28]} 16. Bc2 {[%clk 0:01:36]}  Rc8 {[%clk 0:01:58]} 17. b4 {[%clk 0:01:32]}  Na6 {[%clk 0:01:58]} 18. Be4 {[%clk 0:01:27]}  Bxb4 {[%clk 0:01:51]} 19. Bxb7 {[%clk 0:01:26]}  Rxc3 {[%clk 0:01:48]} 20. Bxa6 {[%clk 0:01:26]}  O-O {[%clk 0:01:38]} 21. Rxc3 {[%clk 0:01:12]}  Bxc3 {[%clk 0:01:39]} 22. Rc1 {[%clk 0:01:13]}  Ba5 {[%clk 0:01:39]} 23. Nd4 {[%clk 0:01:03]}  g5 {[%clk 0:01:39]} 24. Nc6 {[%clk 0:01:02]}  Bb6 {[%clk 0:01:37]} 25. Nxa7 {[%clk 0:01:01]}  Ra8 {[%clk 0:01:29]} 26. Nc8 {[%clk 0:00:17]}  Rxa6 {[%clk 0:01:25]} 27. Nxb6 {[%clk 0:00:17]}  Rxb6 {[%clk 0:01:25]} 28. Rc7 {[%clk 0:00:18]}  Bb5+ {[%clk 0:01:21]} 29. Kf3 {[%clk 0:00:19]}  Kg7 {[%clk 0:01:09]} 30. Kg4 {[%clk 0:00:16]}  Kg6 {[%clk 0:01:09]} 31. h4 {[%clk 0:00:16]}  Be2+ {[%clk 0:01:06]} 32. f3 {[%clk 0:00:16]}  Rb4+ {[%clk 0:01:04]} 33. Kg3 {[%clk 0:00:15]}  gxh4+ {[%clk 0:01:04]} 34. Kh3 {[%clk 0:00:16]}  Rb2 {[%clk 0:01:01]} 35. Ra7 {[%clk 0:00:14]}  Bf1 {[%clk 0:01:01]} 36. Kxh4 {[%clk 0:00:14]}  Bxg2 {[%clk 0:00:58]} 37. Kg3 {[%clk 0:00:14]}  Bh1 {[%clk 0:00:57]} 38. Ra4 {[%clk 0:00:14]}  Rg2+ {[%clk 0:00:53]} 39. Kh3 {[%clk 0:00:14]}  h5 {[%clk 0:00:40]} 40. Rf4 {[%clk 0:00:13]}  Rg5 {[%clk 0:00:37]} 41. Kh2 {[%clk 0:00:12]}  Bxf3 {[%clk 0:00:33]} 42. a4 {[%clk 0:00:13]}  Bd5 {[%clk 0:00:31]} 43. a5 {[%clk 0:00:13]}  Rxe5 {[%clk 0:00:31]} 44. a6 {[%clk 0:00:13]}  Re2+ {[%clk 0:00:31]} 45. Kh3 {[%clk 0:00:12]}  Re3+ {[%clk 0:00:32]} 46. Kh4 {[%clk 0:00:12]}  Re4 {[%clk 0:00:32]} 0-1


[Site "https://www.chess.com"]